[Event "December 5 Early 2023"]
[Site "https://www.chess.com"]
[Date "2023.12.05"]
[Round "5"]
[White "Sharapov, Evgeny"]
[Black "Tharushi, T H D Niklesha"]
[Result "1-0"]
[Board "131"]
[TimeControl "180+1"]
[WhiteFideId "14103133"]
[BlackFideId "9918264"]
[WhiteElo "2550"]
[BlackElo "2324"]
[WhiteTeam "UKR"]
[BlackTeam "SRI"]
[WhiteClock "0:00:22"]
[BlackClock "0:00:08"]

1. e4 {[%clk 0:03:00]}  c5 {[%clk 0:02:59]} 2. Nf3 {[%clk 0:03:00]}  d6 {[%clk 0:02:59]} 3. d4 {[%clk 0:03:00]}  cxd4 {[%clk 0:03:00]} 4. Nxd4 {[%clk 0:03:00]}  Nf6 {[%clk 0:03:00]} 5. f3 {[%clk 0:03:01]}  g6 {[%clk 0:02:59]} 6. c4 {[%clk 0:03:00]}  Nc6 {[%clk 0:02:58]} 7. Nc3 {[%clk 0:03:00]}  Bg7 {[%clk 0:02:57]} 8. Be3 {[%clk 0:03:00]}  O-O {[%clk 0:02:57]} 9. Be2 {[%clk 0:03:00]}  Be6 {[%clk 0:02:52]} 10. O-O {[%clk 0:02:59]}  Nd7 {[%clk 0:02:47]} 11. Nxe6 {[%clk 0:02:56]}  fxe6 {[%clk 0:02:48]} 12. Qd2 {[%clk 0:02:56]}  Rc8 {[%clk 0:02:47]} 13. Rac1 {[%clk 0:02:55]}  a6 {[%clk 0:02:31]} 14. b3 {[%clk 0:02:52]}  Kh8 {[%clk 0:02:23]} 15. f4 {[%clk 0:02:50]}  Qa5 {[%clk 0:02:22]} 16. Bg4 {[%clk 0:02:44]}  Nc5 {[%clk 0:02:14]} 17. Bf3 {[%clk 0:02:30]}  e5 {[%clk 0:02:07]} 18. f5 {[%clk 0:02:11]}  gxf5 {[%clk 0:02:04]} 19. exf5 {[%clk 0:02:12]}  Rxf5 {[%clk 0:02:04]} 20. Bg4 {[%clk 0:01:55]}  Rxf1+ {[%clk 0:01:58]} 21. Rxf1 {[%clk 0:01:54]}  Rf8 {[%clk 0:01:55]} 22. Rxf8+ {[%clk 0:01:49]}  Bxf8 {[%clk 0:01:56]} 23. Qf2 {[%clk 0:01:45]}  Bg7 {[%clk 0:01:47]} 24. Qf7 {[%clk 0:01:41]}  Qd8 {[%clk 0:01:42]} 25. Nd5 {[%clk 0:01:38]}  Ne4 {[%clk 0:01:32]} 26. Bf5 {[%clk 0:01:32]}  Nf6 {[%clk 0:01:06]} 27. Nxf6 {[%clk 0:01:31]}  exf6 {[%clk 0:01:07]} 28. Qxb7 {[%clk 0:01:27]}  Ne7 {[%clk 0:01:06]} 29. Qd7 {[%clk 0:01:20]}  Qa5 {[%clk 0:00:43]} 30. Qe8+ {[%clk 0:00:59]}  Ng8 {[%clk 0:00:43]} 31. Bf2 {[%clk 0:00:49]}  Qd2 {[%clk 0:00:43]} 32. g4 {[%clk 0:00:37]}  Qh6 {[%clk 0:00:27]} 33. Be6 {[%clk 0:00:34]}  Bf8 {[%clk 0:00:27]} 34. Qf7 {[%clk 0:00:30]}  Qg7 {[%clk 0:00:27]} 35. Qxg7+ {[%clk 0:00:28]}  Kxg7 {[%clk 0:00:28]} 36. Bxg8 {[%clk 0:00:25]}  Kxg8 {[%clk 0:00:29]} 37. Kg2 {[%clk 0:00:25]}  Kf7 {[%clk 0:00:29]} 38. Kf3 {[%clk 0:00:26]}  Ke6 {[%clk 0:00:30]} 39. Ke4 {[%clk 0:00:26]}  Bh6 {[%clk 0:00:29]} 40. b4 {[%clk 0:00:26]}  Bf4 {[%clk 0:00:25]} 41. h3 {[%clk 0:00:25]}  h5 {[%clk 0:00:20]} 42. a4 {[%clk 0:00:23]}  hxg4 {[%clk 0:00:20]} 43. hxg4 {[%clk 0:00:23]}  Kd7 {[%clk 0:00:18]} 44. Kd5 {[%clk 0:00:23]}  Kc7 {[%clk 0:00:17]} 45. b5 {[%clk 0:00:23]}  axb5 {[%clk 0:00:17]} 46. cxb5 {[%clk 0:00:24]}  Bg5 {[%clk 0:00:17]} 47. a5 {[%clk 0:00:24]}  Kb7 {[%clk 0:00:17]} 48. a6+ {[%clk 0:00:24]}  Kb8 {[%clk 0:00:18]} 49. b6 {[%clk 0:00:24]}  Bd2 {[%clk 0:00:09]} 50. Kc6 {[%clk 0:00:22]}  Ba5 {[%clk 0:00:09]} 51. a7+ {[%clk 0:00:22]}  Kc8 {[%clk 0:00:08]} 52. a8=Q# {[%clk 0:00:22]} 1-0

[Event "December 5 Early 2023"]
[Site "https://www.chess.com"]
[Date "2023.12.05"]
[Round "5"]
[White "Dyulgerov, Volen"]
[Black "Hajiyev, Kanan"]
[Result "0-1"]
[Board "132"]
[TimeControl "180+1"]
[WhiteFideId "2918978"]
[BlackFideId "13404148"]
[WhiteElo "2255"]
[BlackElo "2548"]
[WhiteTeam "BUL"]
[BlackTeam "AZE"]
[WhiteClock "0:00:00"]
[BlackClock "0:01:03"]

1. e4 {[%clk 0:02:52]}  c6 {[%clk 0:02:59]} 2. d4 {[%clk 0:02:50]}  d5 {[%clk 0:03:00]} 3. Nd2 {[%clk 0:02:50]}  a6 {[%clk 0:03:00]} 4. Ngf3 {[%clk 0:02:46]}  Bg4 {[%clk 0:03:00]} 5. Bd3 {[%clk 0:02:14]}  e6 {[%clk 0:03:00]} 6. c3 {[%clk 0:02:02]}  Nf6 {[%clk 0:02:59]} 7. e5 {[%clk 0:02:02]}  Nfd7 {[%clk 0:02:58]} 8. b4 {[%clk 0:02:02]}  a5 {[%clk 0:02:58]} 9. b5 {[%clk 0:01:23]}  c5 {[%clk 0:02:57]} 10. O-O {[%clk 0:01:19]}  Be7 {[%clk 0:02:55]} 11. Re1 {[%clk 0:01:16]}  O-O {[%clk 0:02:55]} 12. Nf1 {[%clk 0:01:10]}  Qb6 {[%clk 0:02:51]} 13. a4 {[%clk 0:01:01]}  cxd4 {[%clk 0:02:47]} 14. cxd4 {[%clk 0:01:01]}  Bxf3 {[%clk 0:02:42]} 15. Qxf3 {[%clk 0:01:00]}  Qxd4 {[%clk 0:02:42]} 16. Bf4 {[%clk 0:00:33]}  Nc5 {[%clk 0:02:29]} 17. Bc2 {[%clk 0:00:33]}  Nbd7 {[%clk 0:02:23]} 18. Rad1 {[%clk 0:00:34]}  Qb2 {[%clk 0:02:19]} 19. Re2 {[%clk 0:00:30]}  Qb4 {[%clk 0:02:14]} 20. Rb1 {[%clk 0:00:26]}  Qc4 {[%clk 0:02:01]} 21. Ne3 {[%clk 0:00:26]}  Qc3 {[%clk 0:01:55]} 22. Qh5 {[%clk 0:00:16]}  g6 {[%clk 0:01:52]} 23. Qh6 {[%clk 0:00:16]}  Nxe5 {[%clk 0:01:44]} 24. Nf5 {[%clk 0:00:09]}  exf5 {[%clk 0:01:07]} 25. Bxe5 {[%clk 0:00:09]}  Bf6 {[%clk 0:01:06]} 26. Bxc3 {[%clk 0:00:07]}  Bxc3 {[%clk 0:01:07]} 27. Re7 {[%clk 0:00:05]}  Bf6 {[%clk 0:01:03]} 28. Rc7 {[%clk 0:00:03]}  b6 {[%clk 0:01:03]} 29. Bxf5 {[%clk 0:00:02]}  Be5 {[%clk 0:01:00]} 30. Bxg6 {[%clk 0:00:02]}  hxg6 {[%clk 0:00:57]} 31. Re7 {[%clk 0:00:02]}  Bg7 {[%clk 0:00:58]} 32. Qg5 {[%clk 0:00:02]}  Ne4 {[%clk 0:00:58]} 33. Rxe4 {[%clk 0:00:01]}  dxe4 {[%clk 0:00:59]} 34. Qg4 {[%clk 0:00:01]}  Rfe8 {[%clk 0:01:00]} 35. Qg3 {[%clk 0:00:02]}  Rad8 {[%clk 0:01:01]} 36. Re1 {[%clk 0:00:02]}  Be5 {[%clk 0:01:01]} 37. Qe3 {[%clk 0:00:02]}  Bd4 {[%clk 0:01:01]} 38. Qe2 {[%clk 0:00:03]}  f5 {[%clk 0:01:02]} 39. g4 {[%clk 0:00:03]}  Kg7 {[%clk 0:01:02]} 40. gxf5 {[%clk 0:00:03]}  gxf5 {[%clk 0:01:02]} 41. Kh1 {[%clk 0:00:04]}  Kf6 {[%clk 0:01:03]} 42. Rg1 {[%clk 0:00:04]}  Rh8 {[%clk 0:01:03]} 43. Qc2 {[%clk 0:00:03]}  Be5 {[%clk 0:01:03]} 44. Qc6+ {[%clk 0:00:04]}  Rd6 {[%clk 0:01:03]} 45. Qxd6+ {[%clk 0:00:01]}  Bxd6 {[%clk 0:01:04]} 46. Rd1 {[%clk 0:00:01]}  Bxh2 {[%clk 0:01:02]} 47. Kg2 {[%clk 0:00:01]}  Be5 {[%clk 0:01:03]} 48. f4 {[%clk 0:00:00]}  Bxf4 {[%clk 0:01:03]} 0-1

[Event "December 5 Early 2023"]
[Site "https://www.chess.com"]
[Date "2023.12.05"]
[Round "5"]
[White "Cagara, Paulina"]
[Black "Gavrilov, Maxim"]
[Result "0-1"]
[Board "136"]
[TimeControl "180+1"]
[WhiteFideId "1124870"]
[BlackFideId "24271454"]
[WhiteElo "2223"]
[BlackElo "2540"]
[WhiteTeam "POL"]
[BlackTeam "RUS"]
[WhiteClock "0:00:00"]
[BlackClock "0:00:09"]

1. e4 {[%clk 0:03:00]}  c5 {[%clk 0:02:55]} 2. Nc3 {[%clk 0:03:00]}  d6 {[%clk 0:02:54]} 3. f4 {[%clk 0:02:58]}  g6 {[%clk 0:02:54]} 4. Nf3 {[%clk 0:02:59]}  Bg7 {[%clk 0:02:54]} 5. g3 {[%clk 0:02:59]}  Nc6 {[%clk 0:02:54]} 6. Bg2 {[%clk 0:02:59]}  e6 {[%clk 0:02:54]} 7. O-O {[%clk 0:02:58]}  Nge7 {[%clk 0:02:55]} 8. d3 {[%clk 0:02:59]}  O-O {[%clk 0:02:55]} 9. Qe1 {[%clk 0:02:59]}  Rb8 {[%clk 0:02:54]} 10. a4 {[%clk 0:02:58]}  a6 {[%clk 0:02:54]} 11. Be3 {[%clk 0:02:53]}  b5 {[%clk 0:02:50]} 12. axb5 {[%clk 0:02:52]}  axb5 {[%clk 0:02:51]} 13. g4 {[%clk 0:02:50]}  b4 {[%clk 0:02:49]} 14. Nd1 {[%clk 0:02:49]}  f5 {[%clk 0:02:47]} 15. gxf5 {[%clk 0:02:46]}  exf5 {[%clk 0:02:46]} 16. e5 {[%clk 0:02:45]}  Bb7 {[%clk 0:02:32]} 17. exd6 {[%clk 0:02:44]}  Qxd6 {[%clk 0:02:30]} 18. Qf2 {[%clk 0:02:39]}  Nd4 {[%clk 0:02:24]} 19. Bxd4 {[%clk 0:02:32]}  cxd4 {[%clk 0:02:18]} 20. Ng5 {[%clk 0:02:28]}  Bxg2 {[%clk 0:02:06]} 21. Qxg2 {[%clk 0:02:28]}  h6 {[%clk 0:02:04]} 22. Nh3 {[%clk 0:02:28]}  Kh7 {[%clk 0:01:55]} 23. Re1 {[%clk 0:02:27]}  Nd5 {[%clk 0:01:53]} 24. Ra7 {[%clk 0:02:22]}  Ra8 {[%clk 0:01:31]} 25. Rb7 {[%clk 0:02:12]}  Ra1 {[%clk 0:01:23]} 26. Qf3 {[%clk 0:02:09]}  Ne3 {[%clk 0:01:08]} 27. Nhf2 {[%clk 0:01:55]}  Re8 {[%clk 0:00:46]} 28. h4 {[%clk 0:01:41]}  Kh8 {[%clk 0:00:19]} 29. h5 {[%clk 0:01:10]}  gxh5 {[%clk 0:00:17]} 30. Qxh5 {[%clk 0:01:09]}  Rg8 {[%clk 0:00:17]} 31. Kh2 {[%clk 0:00:19]}  Qxf4+ {[%clk 0:00:16]} 32. Kh3 {[%clk 0:00:17]}  Bf8 {[%clk 0:00:10]} 33. Rh7+ {[%clk 0:00:05]}  Kxh7 {[%clk 0:00:10]} 34. Qf7+ {[%clk 0:00:05]}  Rg7 {[%clk 0:00:10]} 35. Qxg7+ {[%clk 0:00:01]}  Bxg7 {[%clk 0:00:10]} 36. Nxe3 {[%clk 0:00:00]}  dxe3 {[%clk 0:00:09]} 0-1

[Event "December 5 Early 2023"]
[Site "https://www.chess.com"]
[Date "2023.12.05"]
[Round "5"]
[White "Pham, Le Thao Nguyen"]
[Black "Dimitrijevic, Darko"]
[Result "1-0"]
[Board "139"]
[TimeControl "180+1"]
[WhiteFideId "12401226"]
[BlackFideId "14500892"]
[WhiteElo "2533"]
[BlackElo "2204"]
[WhiteTeam "VIE"]
[BlackTeam "CRO"]
[WhiteClock "0:00:08"]
[BlackClock "0:00:10"]

1. d4 {[%clk 0:02:56]}  Nf6 {[%clk 0:02:58]} 2. Nf3 {[%clk 0:02:55]}  e6 {[%clk 0:02:55]} 3. Bf4 {[%clk 0:02:55]}  b6 {[%clk 0:02:53]} 4. e3 {[%clk 0:02:54]}  c5 {[%clk 0:02:49]} 5. Nbd2 {[%clk 0:02:54]}  Nc6 {[%clk 0:02:47]} 6. Nc4 {[%clk 0:02:46]}  d5 {[%clk 0:02:44]} 7. Nce5 {[%clk 0:02:44]}  Nxe5 {[%clk 0:02:43]} 8. Nxe5 {[%clk 0:02:44]}  a6 {[%clk 0:02:29]} 9. c3 {[%clk 0:02:32]}  c4 {[%clk 0:02:12]} 10. b3 {[%clk 0:01:50]}  b5 {[%clk 0:01:59]} 11. a4 {[%clk 0:01:50]}  Bd7 {[%clk 0:01:46]} 12. axb5 {[%clk 0:01:43]}  axb5 {[%clk 0:01:45]} 13. bxc4 {[%clk 0:00:44]}  bxc4 {[%clk 0:01:43]} 14. f3 {[%clk 0:00:32]}  Be7 {[%clk 0:01:35]} 15. Be2 {[%clk 0:00:32]}  O-O {[%clk 0:01:34]} 16. O-O {[%clk 0:00:32]}  Qb6 {[%clk 0:01:13]} 17. Bg3 {[%clk 0:00:26]}  Ba3 {[%clk 0:01:02]} 18. Bh4 {[%clk 0:00:24]}  Ba4 {[%clk 0:00:58]} 19. Qd2 {[%clk 0:00:15]}  Qb2 {[%clk 0:00:37]} 20. Qe1 {[%clk 0:00:08]}  Bc2 {[%clk 0:00:34]} 21. Bxf6 {[%clk 0:00:07]}  gxf6 {[%clk 0:00:33]} 22. Nd7 {[%clk 0:00:08]}  Rfd8 {[%clk 0:00:23]} 23. Nxf6+ {[%clk 0:00:08]}  Kg7 {[%clk 0:00:22]} 24. Nh5+ {[%clk 0:00:08]}  Kg6 {[%clk 0:00:20]} 25. Qh4 {[%clk 0:00:08]}  Qxc3 {[%clk 0:00:10]} 26. Qf6+ {[%clk 0:00:08]}  Kxh5 {[%clk 0:00:10]} 27. g4# {[%clk 0:00:08]} 1-0

[Event "December 5 Early 2023"]
[Site "https://www.chess.com"]
[Date "2023.12.05"]
[Round "5"]
[White "Kotyk, Michael"]
[Black "Yushko, Olga"]
[Result "1/2-1/2"]
[Board "141"]
[TimeControl "180+1"]
[WhiteFideId "16214501"]
[BlackFideId "14114500"]
[WhiteElo "2524"]
[BlackElo "2117"]
[WhiteTeam "GER"]
[BlackTeam "UKR"]
[WhiteClock "0:00:12"]
[BlackClock "0:00:19"]

1. e4 {[%clk 0:02:53]}  e6 {[%clk 0:02:59]} 2. d4 {[%clk 0:02:52]}  d5 {[%clk 0:02:59]} 3. Nc3 {[%clk 0:02:49]}  Nf6 {[%clk 0:02:59]} 4. Bg5 {[%clk 0:02:47]}  dxe4 {[%clk 0:02:58]} 5. Nxe4 {[%clk 0:02:47]}  Be7 {[%clk 0:02:57]} 6. Bxf6 {[%clk 0:02:48]}  Bxf6 {[%clk 0:02:58]} 7. Nf3 {[%clk 0:02:47]}  O-O {[%clk 0:02:58]} 8. Nxf6+ {[%clk 0:02:44]}  Qxf6 {[%clk 0:02:58]} 9. Bd3 {[%clk 0:02:45]}  c5 {[%clk 0:02:56]} 10. O-O {[%clk 0:02:43]}  cxd4 {[%clk 0:02:55]} 11. Nxd4 {[%clk 0:02:43]}  Nd7 {[%clk 0:02:53]} 12. c3 {[%clk 0:02:41]}  Ne5 {[%clk 0:02:47]} 13. Be4 {[%clk 0:02:40]}  Rb8 {[%clk 0:02:35]} 14. Qe2 {[%clk 0:02:27]}  b6 {[%clk 0:02:24]} 15. Rfe1 {[%clk 0:02:25]}  Ng6 {[%clk 0:02:19]} 16. Nc6 {[%clk 0:01:57]}  Rb7 {[%clk 0:02:15]} 17. Rad1 {[%clk 0:01:52]}  Rc7 {[%clk 0:02:14]} 18. Nd4 {[%clk 0:01:52]}  Rd8 {[%clk 0:02:06]} 19. Nb5 {[%clk 0:01:50]}  Rcd7 {[%clk 0:02:04]} 20. Rxd7 {[%clk 0:01:43]}  Rxd7 {[%clk 0:02:03]} 21. Bc6 {[%clk 0:01:42]}  Nf4 {[%clk 0:01:42]} 22. Qe4 {[%clk 0:01:22]}  Rd2 {[%clk 0:01:31]} 23. Nxa7 {[%clk 0:01:21]}  Ba6 {[%clk 0:01:30]} 24. Qf3 {[%clk 0:00:29]}  Be2 {[%clk 0:01:02]} 25. Qe3 {[%clk 0:00:23]}  Rxb2 {[%clk 0:00:56]} 26. Bf3 {[%clk 0:00:16]}  Nh3+ {[%clk 0:00:47]} 27. gxh3 {[%clk 0:00:12]}  Bxf3 {[%clk 0:00:47]} 28. Qe5 {[%clk 0:00:11]}  Qg6+ {[%clk 0:00:41]} 29. Qg3 {[%clk 0:00:10]}  Qxg3+ {[%clk 0:00:37]} 30. hxg3 {[%clk 0:00:11]}  Rxa2 {[%clk 0:00:37]} 31. Nc8 {[%clk 0:00:12]}  Kf8 {[%clk 0:00:37]} 32. Nxb6 {[%clk 0:00:12]}  Rb2 {[%clk 0:00:34]} 33. Nc4 {[%clk 0:00:09]}  Rc2 {[%clk 0:00:32]} 34. Ne5 {[%clk 0:00:09]}  Bd5 {[%clk 0:00:30]} 35. c4 {[%clk 0:00:06]}  Bxc4 {[%clk 0:00:28]} 36. Nxc4 {[%clk 0:00:07]}  Rxc4 {[%clk 0:00:28]} 37. h4 {[%clk 0:00:08]}  Ke7 {[%clk 0:00:28]} 38. Kg2 {[%clk 0:00:08]}  f6 {[%clk 0:00:28]} 39. Ra1 {[%clk 0:00:09]}  Kf7 {[%clk 0:00:27]} 40. Ra7+ {[%clk 0:00:09]}  Kg6 {[%clk 0:00:28]} 41. Ra5 {[%clk 0:00:09]}  e5 {[%clk 0:00:28]} 42. Ra6 {[%clk 0:00:10]}  Rc2 {[%clk 0:00:27]} 43. Ra7 {[%clk 0:00:10]}  Rb2 {[%clk 0:00:24]} 44. Ra3 {[%clk 0:00:10]}  Rb7 {[%clk 0:00:24]} 45. Ra4 {[%clk 0:00:10]}  Rb6 {[%clk 0:00:23]} 46. Ra5 {[%clk 0:00:11]}  Kf5 {[%clk 0:00:23]} 47. Ra4 {[%clk 0:00:11]}  Rb7 {[%clk 0:00:22]} 48. Ra5 {[%clk 0:00:11]}  Ke6 {[%clk 0:00:22]} 49. Ra6+ {[%clk 0:00:11]}  Ke7 {[%clk 0:00:22]} 50. Ra5 {[%clk 0:00:11]}  g6 {[%clk 0:00:22]} 51. Ra6 {[%clk 0:00:12]}  Kf7 {[%clk 0:00:22]} 52. Rc6 {[%clk 0:00:12]}  Re7 {[%clk 0:00:22]} 53. Rb6 {[%clk 0:00:12]}  Re6 {[%clk 0:00:19]} 54. Rb7+ {[%clk 0:00:12]}  Re7 {[%clk 0:00:19]} 1/2-1/2

[Event "December 5 Early 2023"]
[Site "https://www.chess.com"]
[Date "2023.12.05"]
[Round "5"]
[White "Abdilkhair, Abilmansur"]
[Black "Yashmetov, Mikhail"]
[Result "0-1"]
[Board "142"]
[TimeControl "180+1"]
[WhiteFideId "13716417"]
[BlackFideId "24198900"]
[WhiteElo "1797"]
[BlackElo "2521"]
[WhiteTeam "KAZ"]
[BlackTeam "RUS"]
[WhiteClock "0:00:12"]
[BlackClock "0:00:04"]

1. d4 {[%clk 0:02:54]}  d5 {[%clk 0:02:59]} 2. Nc3 {[%clk 0:02:54]}  Nf6 {[%clk 0:02:55]} 3. Bf4 {[%clk 0:02:54]}  e6 {[%clk 0:02:50]} 4. Nb5 {[%clk 0:02:54]}  Na6 {[%clk 0:02:50]} 5. e3 {[%clk 0:02:53]}  Be7 {[%clk 0:02:47]} 6. g4 {[%clk 0:02:52]}  c6 {[%clk 0:02:42]} 7. Nc3 {[%clk 0:02:51]}  c5 {[%clk 0:02:41]} 8. Nb5 {[%clk 0:02:44]}  Bd7 {[%clk 0:02:37]} 9. a4 {[%clk 0:02:41]}  O-O {[%clk 0:02:28]} 10. Bg2 {[%clk 0:02:34]}  Qa5+ {[%clk 0:02:16]} 11. c3 {[%clk 0:02:33]}  Bxb5 {[%clk 0:02:09]} 12. axb5 {[%clk 0:02:34]}  Qxb5 {[%clk 0:02:10]} 13. g5 {[%clk 0:02:19]}  Ne4 {[%clk 0:02:04]} 14. Bxe4 {[%clk 0:02:16]}  dxe4 {[%clk 0:02:05]} 15. Qe2 {[%clk 0:02:16]}  Qc6 {[%clk 0:01:24]} 16. h4 {[%clk 0:02:11]}  Nc7 {[%clk 0:01:08]} 17. Bxc7 {[%clk 0:02:04]}  Qxc7 {[%clk 0:01:08]} 18. Qg4 {[%clk 0:02:04]}  cxd4 {[%clk 0:01:05]} 19. exd4 {[%clk 0:02:04]}  Qc6 {[%clk 0:01:02]} 20. Rh3 {[%clk 0:01:58]}  Qb5 {[%clk 0:00:33]} 21. Qe2 {[%clk 0:01:52]}  Qxe2+ {[%clk 0:00:21]} 22. Nxe2 {[%clk 0:01:51]}  f5 {[%clk 0:00:19]} 23. Nf4 {[%clk 0:01:44]}  Kf7 {[%clk 0:00:19]} 24. f3 {[%clk 0:01:29]}  Bd6 {[%clk 0:00:19]} 25. Ng2 {[%clk 0:01:29]}  exf3 {[%clk 0:00:17]} 26. Rxf3 {[%clk 0:01:30]}  g6 {[%clk 0:00:18]} 27. Ne3 {[%clk 0:01:28]}  Rfe8 {[%clk 0:00:17]} 28. Nc4 {[%clk 0:01:28]}  Bc7 {[%clk 0:00:18]} 29. Re3 {[%clk 0:01:26]}  Bf4 {[%clk 0:00:15]} 30. Rf3 {[%clk 0:01:26]}  Bc7 {[%clk 0:00:15]} 31. Re3 {[%clk 0:01:27]}  a6 {[%clk 0:00:13]} 32. Kd1 {[%clk 0:01:14]}  Rad8 {[%clk 0:00:12]} 33. Kc2 {[%clk 0:01:12]}  Rd5 {[%clk 0:00:12]} 34. Rae1 {[%clk 0:01:12]}  b5 {[%clk 0:00:11]} 35. Ne5+ {[%clk 0:01:00]}  Bxe5 {[%clk 0:00:11]} 36. Rxe5 {[%clk 0:01:00]}  Rxe5 {[%clk 0:00:10]} 37. Rxe5 {[%clk 0:01:01]}  Rc8 {[%clk 0:00:08]} 38. Kb3 {[%clk 0:00:58]}  Rc4 {[%clk 0:00:07]} 39. Kc2 {[%clk 0:00:52]}  Ke7 {[%clk 0:00:07]} 40. b3 {[%clk 0:00:49]}  Rc6 {[%clk 0:00:06]} 41. d5 {[%clk 0:00:47]}  Rd6 {[%clk 0:00:06]} 42. c4 {[%clk 0:00:47]}  bxc4 {[%clk 0:00:05]} 43. bxc4 {[%clk 0:00:48]}  Kd7 {[%clk 0:00:06]} 44. Kc3 {[%clk 0:00:44]}  exd5 {[%clk 0:00:07]} 45. cxd5 {[%clk 0:00:45]}  Rb6 {[%clk 0:00:07]} 46. Kc4 {[%clk 0:00:45]}  a5 {[%clk 0:00:08]} 47. Re2 {[%clk 0:00:43]}  Rb4+ {[%clk 0:00:08]} 48. Kc5 {[%clk 0:00:43]}  Rxh4 {[%clk 0:00:09]} 49. Rb2 {[%clk 0:00:41]}  Rh1 {[%clk 0:00:08]} 50. Rb7+ {[%clk 0:00:41]}  Kc8 {[%clk 0:00:09]} 51. Ra7 {[%clk 0:00:41]}  f4 {[%clk 0:00:08]} 52. Rf7 {[%clk 0:00:40]}  Rf1 {[%clk 0:00:06]} 53. Kd6 {[%clk 0:00:37]}  f3 {[%clk 0:00:06]} 54. Rf8+ {[%clk 0:00:37]}  Kb7 {[%clk 0:00:07]} 55. Kd7 {[%clk 0:00:32]}  f2 {[%clk 0:00:07]} 56. d6 {[%clk 0:00:33]}  a4 {[%clk 0:00:07]} 57. Rf7 {[%clk 0:00:30]}  a3 {[%clk 0:00:07]} 58. Kd8+ {[%clk 0:00:30]}  Kc6 {[%clk 0:00:07]} 59. d7 {[%clk 0:00:31]}  a2 {[%clk 0:00:04]} 60. Rf6+ {[%clk 0:00:31]}  Kb5 {[%clk 0:00:04]} 61. Kc8 {[%clk 0:00:24]}  Rc1+ {[%clk 0:00:04]} 62. Kb7 {[%clk 0:00:22]}  Rd1 {[%clk 0:00:05]} 63. Rxf2 {[%clk 0:00:17]}  Rxd7+ {[%clk 0:00:05]} 64. Kc8 {[%clk 0:00:16]}  a1=Q {[%clk 0:00:06]} 65. Kxd7 {[%clk 0:00:15]}  Qe5 {[%clk 0:00:06]} 66. Rf7 {[%clk 0:00:14]}  Qxg5 {[%clk 0:00:05]} 67. Ke8 {[%clk 0:00:14]}  h5 {[%clk 0:00:04]} 68. Kf8 {[%clk 0:00:12]}  Qg4 {[%clk 0:00:04]} 0-1

[Event "December 5 Early 2023"]
[Site "https://www.chess.com"]
[Date "2023.12.05"]
[Round "5"]
[White "Vanek, Tomas"]
[Black "Sadubayev, Airat"]
[Result "0-1"]
[Board "143"]
[TimeControl "180+1"]
[WhiteFideId "313459"]
[BlackFideId "13713264"]
[WhiteElo "2151"]
[BlackElo "2676"]
[WhiteTeam "CZE"]
[BlackTeam "KAZ"]
[WhiteClock "0:00:00"]
[BlackClock "0:00:06"]

1. e4 {[%clk 0:02:59]}  c5 {[%clk 0:02:57]} 2. Nf3 {[%clk 0:02:58]}  e6 {[%clk 0:02:57]} 3. b3 {[%clk 0:02:56]}  Nc6 {[%clk 0:02:56]} 4. Bb2 {[%clk 0:02:55]}  Qc7 {[%clk 0:02:49]} 5. Nc3 {[%clk 0:02:52]}  a6 {[%clk 0:02:48]} 6. a4 {[%clk 0:02:12]}  Nf6 {[%clk 0:02:40]} 7. Bc4 {[%clk 0:02:07]}  Be7 {[%clk 0:02:36]} 8. Qe2 {[%clk 0:02:06]}  O-O {[%clk 0:02:29]} 9. O-O {[%clk 0:01:54]}  Nd4 {[%clk 0:02:11]} 10. Nxd4 {[%clk 0:01:38]}  cxd4 {[%clk 0:02:10]} 11. Nd1 {[%clk 0:01:36]}  e5 {[%clk 0:01:53]} 12. f4 {[%clk 0:01:32]}  Bc5 {[%clk 0:01:35]} 13. Nf2 {[%clk 0:01:16]}  exf4 {[%clk 0:01:26]} 14. Nd3 {[%clk 0:01:14]}  d6 {[%clk 0:01:17]} 15. Rxf4 {[%clk 0:01:12]}  Be6 {[%clk 0:01:11]} 16. Raf1 {[%clk 0:01:05]}  Qe7 {[%clk 0:01:05]} 17. Nxc5 {[%clk 0:00:44]}  dxc5 {[%clk 0:01:03]} 18. e5 {[%clk 0:00:24]}  Nd5 {[%clk 0:00:55]} 19. Bxd5 {[%clk 0:00:21]}  Bxd5 {[%clk 0:00:56]} 20. d3 {[%clk 0:00:14]}  Rae8 {[%clk 0:00:54]} 21. Rf5 {[%clk 0:00:14]}  g6 {[%clk 0:00:52]} 22. R5f2 {[%clk 0:00:09]}  Qxe5 {[%clk 0:00:50]} 23. Qd2 {[%clk 0:00:09]}  f5 {[%clk 0:00:47]} 24. Bc1 {[%clk 0:00:09]}  Qf6 {[%clk 0:00:43]} 25. Qh6 {[%clk 0:00:08]}  Re6 {[%clk 0:00:38]} 26. h4 {[%clk 0:00:08]}  Rfe8 {[%clk 0:00:38]} 27. h5 {[%clk 0:00:07]}  Re1 {[%clk 0:00:37]} 28. Bg5 {[%clk 0:00:07]}  Qg7 {[%clk 0:00:34]} 29. hxg6 {[%clk 0:00:07]}  Qxh6 {[%clk 0:00:32]} 30. Bxh6 {[%clk 0:00:07]}  hxg6 {[%clk 0:00:33]} 31. Bf4 {[%clk 0:00:06]}  Kf7 {[%clk 0:00:30]} 32. Bd6 {[%clk 0:00:05]}  b6 {[%clk 0:00:28]} 33. Bc7 {[%clk 0:00:04]}  Rxf1+ {[%clk 0:00:22]} 34. Rxf1 {[%clk 0:00:04]}  Re6 {[%clk 0:00:22]} 35. g4 {[%clk 0:00:03]}  Kf6 {[%clk 0:00:17]} 36. gxf5 {[%clk 0:00:03]}  gxf5 {[%clk 0:00:17]} 37. Rf2 {[%clk 0:00:04]}  Rc6 {[%clk 0:00:16]} 38. Bb8 {[%clk 0:00:03]}  b5 {[%clk 0:00:16]} 39. axb5 {[%clk 0:00:02]}  axb5 {[%clk 0:00:16]} 40. Bg3 {[%clk 0:00:02]}  c4 {[%clk 0:00:16]} 41. bxc4 {[%clk 0:00:02]}  bxc4 {[%clk 0:00:16]} 42. Re2 {[%clk 0:00:02]}  cxd3 {[%clk 0:00:15]} 43. cxd3 {[%clk 0:00:03]}  Rc3 {[%clk 0:00:14]} 44. Be5+ {[%clk 0:00:02]}  Kg6 {[%clk 0:00:13]} 45. Bxd4 {[%clk 0:00:02]}  Rxd3 {[%clk 0:00:13]} 46. Bf2 {[%clk 0:00:02]}  Be4 {[%clk 0:00:13]} 47. Bh4 {[%clk 0:00:02]}  Rd1+ {[%clk 0:00:13]} 48. Be1 {[%clk 0:00:02]}  Kh5 {[%clk 0:00:13]} 49. Kf2 {[%clk 0:00:03]}  Kg4 {[%clk 0:00:12]} 50. Rd2 {[%clk 0:00:03]}  Ra1 {[%clk 0:00:12]} 51. Rb2 {[%clk 0:00:02]}  f4 {[%clk 0:00:11]} 52. Rd2 {[%clk 0:00:02]}  Ra3 {[%clk 0:00:11]} 53. Rb2 {[%clk 0:00:02]}  Rf3+ {[%clk 0:00:10]} 54. Ke2 {[%clk 0:00:02]}  Rh3 {[%clk 0:00:09]} 55. Rb4 {[%clk 0:00:02]}  Rh2+ {[%clk 0:00:08]} 56. Bf2 {[%clk 0:00:02]}  Bf3+ {[%clk 0:00:08]} 57. Ke1 {[%clk 0:00:01]}  Rh1+ {[%clk 0:00:09]} 58. Kd2 {[%clk 0:00:01]}  Rd1+ {[%clk 0:00:09]} 59. Kc2 {[%clk 0:00:01]}  Rf1 {[%clk 0:00:08]} 60. Be3 {[%clk 0:00:00]}  Be2 {[%clk 0:00:06]} 0-1